bitfinex/quotes_ETHUSD_20260121
["timestamp","ask_amount","ask_price","bid_price","bid_amount"]
[1768998710092,0.9542265,2908.0,2906.6,7.76879065]
[1768998710246,0.9542265,2908.0,2906.7,0.01722409]
[1768998710449,0.91124164,2908.0,2906.7,0.01722409]
[1768998711260,0.91124164,2908.0,2906.7,3.45749165]
[1768998711459,0.91124164,2907.8,2906.2,0.88791581]
[1768998711658,0.91124164,2907.8,2906.6,3.44037355]
[1768998711979,0.91124164,2907.8,2906.6,3.4576006]
[1768998712158,0.0429893,2907.7,2906.6,3.4576006]
[1768998712346,0.91124164,2907.8,2906.7,3.4403097]
[1768998712546,0.91124164,2908.2,2906.8,0.90514049]
[1768998712882,0.95422355,2908.2,2906.8,0.90514049]
[1768998713245,0.95422355,2908.2,2906.8,3.45741416]
[1768998716088,0.91124164,2908.1,2906.6,0.01722468]
[1768998716252,0.91124164,2907.9,2906.6,0.01722468]
[1768998716452,3.43858729,2908.2,2906.6,0.01722468]
[1768998716453,0.91124164,2907.7,2906.6,0.01722468]
[1768998716677,0.91124164,2907.7,2906.5,3.45778272]
[1768998717273,0.91124164,2907.7,2906.5,0.01722823]
[1768998717473,0.90772936,2907.5,2906.1,3.44098225]
[1768998717665,0.90772936,2907.5,2906.4,3.44059234]
[1768998717983,0.95071866,2907.7,2906.4,3.4406195]
[1768998718151,0.95071866,2907.7,2906.3,4.32860165]
[1768998718355,0.95071866,2907.7,2906.5,3.44053543]
[1768998719183,0.95071866,2907.7,2906.3,0.88791581]
[1768998719352,0.95071866,2907.7,2906.2,3.44086155]
[1768998719685,0.90772936,2907.5,2906.2,3.44086155]
[1768998719851,0.95072162,2907.5,2906.2,3.44086155]
[1768998720051,0.90772936,2907.5,2906.3,3.44079224]
[1768998720278,0.90772936,2907.5,2906.2,3.44085567]
[1768998720480,0.90772936,2907.5,2905.8,3.44136229]
[1768998720678,0.90772936,2907.3,2906.0,3.44114414]
[1768998721068,0.90772936,2907.3,2905.9,3.44121638]
[1768998721581,0.90772936,2907.3,2905.7,0.88791581]
[1768998721781,0.90772936,2907.3,2905.8,6.88278614]
[1768998722085,0.90772936,2907.3,2905.9,0.88791581]
[1768998723277,0.90772936,2907.3,2906.1,0.002]
[1768998723474,0.90772936,2907.3,2905.6,0.88791581]
[1768998723792,0.90772936,2907.3,2905.7,3.44149974]
[1768998723977,0.90772936,2907.2,2905.9,0.002]
[1768998724897,0.90772936,2907.2,2905.9,0.88991581]
[1768998725106,0.90772936,2907.2,2906.0,0.88791581]
[1768998725316,0.90772936,2907.2,2905.9,3.44327464]
[1768998725594,0.90772936,2907.2,2905.9,0.002]
[1768998725896,0.90772936,2907.2,2905.9,0.88991581]
[1768998726079,0.90772936,2907.5,2905.9,0.88991581]
[1768998726291,0.9507231,2907.4,2906.1,0.88791581]
[1768998726692,0.90772936,2907.4,2906.2,1.45691581]
[1768998726879,0.90772936,2907.7,2906.3,0.88791581]
[1768998727799,0.90772936,2907.7,2906.5,0.88791581]
[1768998729699,0.90772936,2907.7,2906.6,6.88089176]
[1768998730200,0.001,2907.8,2906.8,0.88791581]
[1768998730576,0.90872936,2908.4,2906.8,0.88791581]
[1768998730577,0.90872936,2908.4,2906.8,0.88691581]
[1768998731495,0.001,2908.4,2906.8,0.88691581]
[1768998731803,0.001,2908.4,2907.0,0.88691581]
[1768998732664,0.90872936,2908.4,2907.0,0.88691581]
[1768998732887,0.90872936,2908.4,2907.2,0.88691581]
[1768998733798,0.90872936,2908.4,2907.4,0.88691581]
[1768998734104,0.001,2908.4,2907.4,0.88691581]
[1768998735975,0.001,2908.2,2907.5,3.43938091]
[1768998736609,0.001,2908.2,2907.1,4.00883231]
[1768998736610,0.001,2908.2,2907.1,1.45591581]
[1768998736794,0.96151845,2908.2,2907.2,3.43973133]
[1768998737004,0.001,2908.2,2907.4,4.32640676]
[1768998737179,0.96151845,2908.2,2907.5,0.569]
[1768998738893,0.96151845,2908.2,2907.3,3.43961465]
[1768998739111,0.96151845,2908.2,2907.6,0.569]
[1768998740031,0.001,2908.2,2907.6,0.569]
[1768998741021,0.001,2908.2,2907.7,0.88691581]
[1768998741323,0.001,2909.1,2907.8,0.88591581]
[1768998741522,0.001,2910.4,2908.5,0.88491581]
[1768998741821,0.001,2910.4,2908.7,0.88491581]
[1768998741822,0.96151845,2910.4,2908.7,0.88491581]
[1768998742225,0.96151845,2910.4,2908.8,0.88491581]
[1768998743025,0.96151845,2910.4,2908.6,0.569]
[1768998743026,0.96151845,2910.4,2909.0,0.88491581]
[1768998743530,0.001,2910.4,2909.0,0.88491581]
[1768998743737,0.001,2910.4,2909.2,0.88491581]
[1768998744228,0.96151845,2910.4,2908.9,11.19809261]
[1768998744424,0.96151845,2910.4,2908.9,7.76036701]
[1768998744425,0.96051845,2910.2,2908.9,7.76036701]
[1768998744627,0.96051845,2910.2,2908.9,11.19809261]
[1768998744932,0.001,2910.4,2909.0,0.88491581]
[1768998745234,0.001,2910.4,2909.2,0.88491581]
[1768998745594,0.04393172,2911.6,2909.1,10.31246775]
[1768998745595,0.96131845,2912.2,2909.6,4.71221941]
[1768998745904,0.96131845,2912.2,2910.7,0.88491581]
[1768998746154,0.96131845,2912.2,2910.8,0.569]
[1768998746995,0.96131845,2912.2,2910.9,6.87072726]
[1768998751296,0.96131845,2912.2,2909.5,0.88491581]
[1768998751628,0.96051845,2911.7,2909.6,0.03436898]
[1768998751826,0.96051845,2911.7,2910.6,3.43563159]
[1768998752325,0.96051845,2911.7,2910.7,3.43559723]
[1768998752491,0.96051845,2911.7,2910.6,3.4356783]
[1768998752901,0.96051845,2911.7,2910.6,3.43568697]
[1768998753135,0.96051845,2911.7,2910.5,3.43583576]
[1768998753330,0.96051845,2911.7,2910.5,6.87167152]
[1768998755128,0.96051845,2911.7,2910.3,10.30814373]
[1768998755348,0.96051845,2911.7,2910.4,0.03435953]
[1768998755631,0.96051845,2911.7,2910.4,0.91927534]
[1768998756700,0.96051845,2911.7,2910.4,0.03435953]
[1768998757226,0.96051845,2911.7,2910.5,6.87167152]
[1768998757392,0.96051845,2911.7,2910.6,0.03435717]
[1768998759213,0.96051845,2911.7,2910.7,6.87119936]
[1768998760008,0.0008,2912.2,2910.8,1.00164964]
[1768998761336,0.0008,2912.2,2911.0,0.96729483]
[1768998761635,0.0008,2912.5,2911.2,0.96649483]
[1768998761827,0.0008,2912.5,2911.4,0.96649483]
[1768998762024,0.001,2913.0,2911.5,1.00004138]
[1768998762226,0.001,2913.0,2911.7,0.96569483]
[1768998762452,0.001,2913.0,2911.5,1.80004104]
[1768998762453,0.001,2914.5,2911.8,0.9969373]
[1768998762628,0.96051845,2914.4,2912.0,0.9969373]
[1768998762833,0.96051845,2914.4,2912.2,0.9969373]
[1768998763141,0.001,2914.5,2912.6,17.16679255]
[1768998763449,0.001,2914.5,2912.7,0.9969373]
[1768998763756,0.96151845,2914.5,2912.7,0.9969373]
[1768998764256,0.001,2914.5,2912.7,0.9969373]
[1768998764668,0.96151845,2914.5,2912.7,0.9969373]
[1768998764828,0.96151845,2914.5,2912.6,10.30007553]
[1768998765030,0.96051845,2914.3,2912.6,10.30007553]
[1768998765438,0.96051845,2914.3,2912.5,0.9901368]
[1768998766763,0.001,2914.5,2912.5,0.9901368]
[1768998767488,0.001,2914.5,2912.7,0.9901368]
[1768998768651,0.001,2914.5,2912.7,1.0244692]
[1768998769175,0.001,2914.5,2912.8,0.9901368]
[1768998769334,0.001,2914.5,2912.9,6.8660098]
[1768998769335,0.98326019,2914.5,2912.9,6.8660098]
[1768998769659,0.98326019,2914.5,2913.0,0.568]
[1768998770282,0.98326019,2914.5,2913.0,0.60232887]
[1768998770833,0.001,2914.5,2913.1,0.9901368]
[1768998771581,0.001,2914.5,2913.3,0.9901368]
[1768998772394,0.001,2914.3,2913.3,0.9901368]
[1768998772572,0.001,2914.3,2913.4,0.03432415]
[1768998772771,0.001,2914.5,2913.5,0.9901368]
[1768998773109,0.001,2914.5,2913.4,0.03432415]
[1768998773257,0.001,2914.5,2913.3,0.03432533]
[1768998773457,0.001,2914.5,2913.4,10.29724719]
[1768998773680,0.98326019,2914.5,2913.4,6.86483146]
[1768998773989,0.98326019,2914.5,2913.5,0.03432297]
[1768998774685,0.001,2914.5,2913.5,0.03432297]
[1768998775186,0.98326019,2914.5,2913.5,0.03432297]
[1768998775489,0.98326019,2914.5,2913.5,3.46654961]
[1768998775692,0.98326019,2914.5,2913.3,3.43245813]
[1768998775993,0.98326019,2914.5,2913.2,3.43264812]
[1768998776205,0.98326019,2914.5,2913.1,3.43272849]
[1768998776357,0.98326019,2914.5,2913.5,3.43225307]
[1768998776557,0.98326019,2914.5,2913.4,3.43235703]
[1768998776784,0.98326019,2914.5,2913.0,0.568]
[1768998776955,0.98326019,2914.5,2913.4,3.43233499]
[1768998777580,0.98326019,2914.5,2913.1,6.86553842]
[1768998777759,0.98326019,2914.5,2913.2,0.03432651]
[1768998780784,0.98326019,2914.5,2913.3,3.43253355]
[1768998780995,0.98326019,2914.5,2913.0,0.568]
[1768998781199,0.98326019,2914.5,2913.0,0.60232887]
[1768998781392,0.91246743,2914.4,2913.0,0.568]
[1768998781968,0.91246743,2913.8,2912.2,3.43379083]
[1768998782163,0.91246743,2913.8,2912.0,3.43401301]
[1768998782398,0.91246743,2914.4,2912.9,3.43298409]
[1768998782563,0.91246743,2914.4,2913.2,6.86528904]
[1768998782759,0.91246743,2914.4,2913.1,6.86553842]
[1768998783009,0.91246743,2914.4,2913.2,0.568]
[1768998783765,0.91246743,2914.4,2912.7,0.0343324]
[1768998783996,0.91246743,2914.2,2912.6,0.568]
[1768998784169,0.91246743,2914.2,2913.3,0.002]
[1768998784366,0.91246743,2914.2,2912.7,3.43324019]
[1768998784367,0.91246743,2914.2,2912.7,3.43316357]
[1768998784582,0.91246743,2914.2,2912.6,4.00135449]
[1768998784897,0.91246743,2914.2,2912.6,0.568]
[1768998785193,3.56037294,2914.3,2912.6,0.568]
[1768998785194,0.91246743,2914.0,2912.6,0.568]
[1768998785493,0.91246743,2914.0,2912.6,4.001354]
[1768998785884,0.91246743,2914.0,2912.6,0.568]
[1768998786089,0.91246743,2914.0,2912.6,4.00135443]
[1768998786478,0.91246743,2913.2,2911.9,0.002]
[1768998786808,0.52534938,2913.1,2912.0,0.03434065]
[1768998787007,0.91246743,2913.2,2912.0,0.03434065]
[1768998787704,1.04046743,2913.8,2912.0,0.99247581]
[1768998788892,1.04046743,2913.8,2912.1,6.86789602]
[1768998789412,1.04046743,2913.8,2912.1,7.82603118]
[1768998789976,0.91246743,2914.2,2912.2,0.99247346]
[1768998790402,0.001,2914.3,2912.2,0.99247346]
[1768998790794,0.91346743,2914.3,2912.4,0.95813516]
[1768998790996,0.91346743,2914.3,2912.4,1.52613516]
[1768998791194,0.91346743,2914.3,2912.4,1.5604711]
[1768998791413,0.91246743,2914.2,2912.4,1.5604711]
[1768998792819,0.91246743,2914.0,2912.4,4.99400596]
[1768998793117,0.91246743,2914.0,2912.4,0.568]
[1768998793316,0.91246743,2913.8,2912.4,0.568]
[1768998794314,0.91246743,2913.8,2912.4,4.99402592]
[1768998794617,0.91246743,2913.8,2912.4,4.95968998]
[1768998794915,0.91246743,2913.8,2912.4,8.39328426]
[1768998795088,0.91246743,2913.8,2912.4,4.95968998]
[1768998795782,0.91246743,2913.8,2912.4,8.39328426]
[1768998796091,0.93478673,2914.1,2912.5,0.96607425]
[1768998796491,0.93478673,2914.1,2912.7,0.93173949]
[1768998796890,0.93578673,2913.8,2912.6,0.002]
[1768998798519,0.001,2913.8,2912.6,0.96807307]
[1768998798688,0.001,2913.8,2912.8,0.93173949]
[1768998798888,0.001,2913.8,2913.1,0.93173949]
[1768998799314,0.001,2914.3,2913.1,0.93173949]
[1768998799998,0.93678673,2914.3,2913.0,3.46709884]
[1768998800195,0.93678673,2914.3,2913.0,6.89998589]
[1768998800518,0.93578673,2914.0,2912.6,3.43535491]
[1768998800892,0.93578673,2914.0,2912.6,0.002]
[1768998801617,0.001,2914.3,2912.6,0.96807307]
[1768998801986,0.93678673,2914.3,2912.6,0.93373949]
[1768998802188,0.93578673,2914.2,2912.6,0.93373949]
[1768998802389,0.93578673,2914.0,2912.6,0.002]
[1768998802813,0.93578673,2914.0,2912.6,0.93373949]
[1768998803086,0.93578673,2914.0,2912.7,0.93173949]
[1768998803287,0.93578673,2914.0,2912.6,0.002]
[1768998803488,0.93578673,2914.0,2912.6,3.43533594]
[1768998804238,0.93578673,2914.0,2912.5,3.43347547]
[1768998804239,4.34102638,2913.2,2911.5,4.36636249]
[1768998804526,4.34102638,2913.2,2911.2,0.93373949]
[1768998804527,1.06378673,2912.8,2911.2,0.93373949]
[1768998804895,0.93578673,2912.6,2911.2,0.002]
[1768998805101,0.93578673,2912.6,2910.6,0.002]
[1768998805102,0.93578673,2912.4,2910.6,0.002]
[1768998805415,0.93378673,2912.2,2910.6,0.002]
[1768998805801,0.93378673,2912.2,2910.6,3.43769076]
[1768998806007,0.93378673,2912.2,2910.8,0.93173949]
[1768998806405,0.2335703,2912.5,2910.7,0.03435599]
[1768998806406,0.93378673,2911.9,2910.7,0.03435599]
[1768998806611,0.128,2912.1,2910.6,0.002]
[1768998806813,0.93378673,2912.0,2910.6,0.002]
[1768998807028,0.93378673,2912.0,2910.6,3.4376641]
[1768998808519,0.93378673,2912.9,2910.7,0.93173949]
[1768998808840,0.128,2912.7,2910.9,0.93173949]
[1768998809027,0.128,2912.7,2911.1,0.93173949]
[1768998809228,1.06178673,2912.7,2911.1,0.93173949]
[1768998809805,0.93378673,2912.7,2911.3,0.93173949]
[1768998810604,0.93378673,2912.7,2911.3,4.36659952]
[1768998810813,0.68378673,2912.7,2911.3,0.93173949]
[1768998811030,0.68378673,2912.7,2911.1,3.43506734]
[1768998811249,1.09547922,2912.6,2911.2,3.43499936]
[1768998811532,0.68378673,2912.6,2911.2,3.43499936]
[1768998811736,0.68378673,2912.6,2911.3,3.43489039]
[1768998812306,0.68378673,2913.0,2911.4,0.93173949]
[1768998812509,0.2335703,2913.3,2910.8,0.002]
[1768998812510,0.128,2913.3,2911.8,0.93173949]
[1768998812722,0.128,2913.3,2911.7,6.8688395]
[1768998812723,0.128,2913.3,2912.0,0.93173949]
[1768998813000,0.81178673,2913.3,2911.7,3.43441975]
[1768998813205,0.81178673,2913.3,2911.6,4.36624102]
[1768998813405,0.68378673,2913.2,2911.6,4.36624102]
[1768998813626,0.68378673,2913.2,2911.6,7.80077873]
[1768998814026,0.68378673,2913.2,2911.7,0.93173949]
[1768998814738,0.68378673,2913.2,2911.8,3.4343018]
[1768998814902,0.68378673,2913.2,2911.8,4.36604129]
[1768998815332,0.68378673,2913.2,2911.9,0.93173949]
[1768998816129,0.68378673,2913.2,2911.6,3.43453636]
[1768998816332,0.68378673,2913.2,2911.7,4.36613319]
[1768998816837,0.128,2913.3,2911.9,0.93173949]
[1768998817339,0.128,2913.5,2911.9,0.93173949]
[1768998817537,0.128,2913.5,2912.1,0.93173949]
[1768998819244,0.128,2913.5,2912.1,4.36568039]
[1768998819544,0.129,2913.8,2912.2,0.93173949]
[1768998819708,0.001,2913.8,2912.2,0.93173949]
[1768998820914,0.001,2913.8,2912.4,0.93173949]
[1768998821818,0.001,2913.6,2912.6,0.93173949]
[1768998823022,0.001,2913.6,2912.7,4.36498012]
[1768998823432,0.001,2913.6,2912.8,0.93173949]
[1768998825423,0.001,2913.6,2912.8,4.36485329]
[1768998825747,0.001,2913.6,2912.8,0.93173949]
[1768998826419,0.001,2913.6,2912.8,4.36485296]
[1768998826620,0.001,2913.6,2912.9,0.90439829]
[1768998827651,0.001,2913.6,2913.0,0.90439829]
[1768998833768,0.001,2913.6,2913.0,4.33723243]
[1768998834065,0.001,2913.6,2913.0,0.90439829]
[1768998834269,0.001,2913.4,2913.0,0.90439829]
[1768998834634,0.001,2913.4,2913.1,0.90439829]
[1768998838452,0.001,2913.4,2912.9,0.95919292]
[1768998838970,0.001,2913.4,2912.8,3.43305689]
[1768998839176,0.001,2913.4,2912.9,3.43299037]
[1768998839371,0.001,2913.4,2912.9,4.39218329]
[1768998840077,0.001,2913.6,2913.2,0.95919292]
[1768998841742,0.001,2913.6,2913.0,0.95919292]
[1768998842072,0.68578673,2913.6,2912.0,0.95919292]
[1768998842272,0.68578673,2913.6,2912.4,3.43358923]
[1768998842474,0.68578673,2913.6,2912.5,0.95919292]
[1768998844459,0.68578673,2913.6,2912.7,0.95919292]
[1768998844873,0.001,2913.6,2912.7,0.95919292]
[1768998845962,0.001,2913.6,2912.9,0.95919292]
[1768998846795,0.001,2913.6,2913.2,0.95919292]
[1768998847159,0.001,2913.6,2912.8,0.95919292]
[1768998847355,0.001,2913.6,2913.0,0.95919292]
[1768998848381,0.001,2913.6,2912.8,0.95919292]
[1768998848696,0.001,2913.6,2912.9,0.568]
[1768998848985,0.001,2913.6,2912.9,1.52719292]
[1768998849685,0.001,2913.6,2913.0,0.95919292]
[1768998852566,0.001,2913.6,2913.1,0.99352061]
[1768998852892,0.001,2913.6,2913.1,0.95919292]
[1768998853759,0.001,2914.3,2913.0,3.43285833]
[1768998853760,0.001,2914.3,2913.3,0.95919292]
[1768998854203,0.001,2914.3,2913.5,0.95919292]
[1768998854494,0.001,2914.3,2913.7,0.95919292]
[1768998854699,0.001,2914.3,2913.9,0.95919292]
[1768998855205,0.0008,2915.5,2914.1,0.95919292]
[1768998856506,0.0008,2915.5,2914.3,0.98504636]
[1768998858503,0.0008,2915.5,2914.5,0.98504636]
[1768998859278,0.68778673,2916.3,2914.6,0.98504636]
[1768998859478,0.68778673,2916.3,2914.8,0.98504636]
[1768998859674,0.81658673,2916.6,2914.8,0.98504636]
[1768998860377,0.51892114,2916.6,2914.8,0.98504636]
[1768998860709,0.51892114,2916.0,2914.5,0.98504636]
[1768998860877,0.51892114,2916.0,2914.8,0.98504636]
[1768998861077,0.51892114,2916.3,2914.9,0.98504636]
[1768998862005,0.51892114,2916.1,2915.0,0.568]
[1768998862388,0.51892114,2916.1,2914.9,0.568]
[1768998862583,0.51892114,2916.1,2914.9,1.55304636]
[1768998862808,0.51892114,2916.1,2915.1,0.98504636]
[1768998863183,0.64692114,2916.4,2915.1,0.98504636]
[1768998863384,0.128,2916.2,2915.1,0.98504636]
[1768998865809,0.128,2916.2,2914.2,3.43145235]
[1768998865810,0.91569822,2916.1,2914.4,0.98504636]
[1768998866105,0.91569822,2916.0,2914.5,0.568]
[1768998866481,0.91569822,2915.9,2914.5,0.568]
[1768998867078,0.91569822,2915.9,2914.0,0.98504636]
[1768998867079,0.91569822,2915.7,2914.0,0.98504636]
[1768998867324,0.91569822,2915.7,2914.1,0.568]
[1768998867906,0.91569822,2915.7,2914.1,1.55304636]
[1768998868231,0.91569822,2915.7,2914.4,0.98504636]
[1768998868409,0.91569822,2915.7,2914.6,0.98504636]
[1768998869217,0.91569822,2915.3,2914.4,0.03431237]
[1768998869422,0.91569822,2915.3,2913.9,0.98504636]
[1768998869605,0.91569822,2915.3,2914.0,0.98504636]
[1768998870491,0.05,2916.1,2914.0,0.98504636]
[1768998870492,4.74844467,2916.4,2914.1,0.98504636]
[1768998870820,0.91569822,2916.2,2914.7,0.98504636]
[1768998870979,0.91569822,2916.2,2914.9,0.98504636]
[1768998871413,0.91569822,2916.0,2914.9,0.98504636]
[1768998872978,0.91569822,2916.3,2914.9,0.98504636]
[1768998873178,0.91569822,2916.3,2915.1,0.98504636]
[1768998874920,0.91569822,2916.6,2915.3,0.98504636]
[1768998875420,0.91569822,2916.6,2914.9,0.03430295]
[1768998875622,0.98681429,2915.2,2914.2,0.98504636]
[1768998875804,0.91569822,2915.5,2914.2,0.98504636]
[1768998875989,0.91569822,2915.5,2913.8,0.03431944]
[1768998876319,0.91569822,2915.5,2914.2,0.98504636]
[1768998876917,0.91569822,2915.5,2914.2,4.45077393]
[1768998878037,0.91569822,2915.5,2914.2,7.8822474]
[1768998878239,0.91569822,2915.5,2914.3,0.98504636]
[1768998878443,0.91569822,2915.5,2914.4,1.01935873]
[1768998879008,0.91569822,2915.5,2914.5,3.43112026]
[1768998879339,0.91569822,2915.5,2914.5,4.41616662]
[1768998879951,0.91569822,2916.4,2914.6,1.01935638]
[1768998880157,3.42879833,2916.5,2914.6,1.01935638]
[1768998880158,0.91569822,2916.2,2914.6,1.01935638]
[1768998881707,0.91569822,2916.2,2914.8,0.98504636]
[1768998882014,0.91569822,2916.2,2914.8,1.01935403]
[1768998882744,0.91569822,2916.2,2915.0,0.98504636]
[1768998882916,0.91569822,2916.2,2915.2,0.98504636]
[1768998883118,0.91569822,2916.6,2915.2,0.98504636]
[1768998883629,0.91569822,2916.6,2915.3,3.43017871]
[1768998883834,0.91569822,2916.6,2915.3,4.41522507]
[1768998884234,0.91569822,2916.6,2915.3,0.98504636]
[1768998885240,0.91569822,2916.6,2915.2,3.43028989]
[1768998885426,0.91569822,2916.6,2915.1,4.37495247]
[1768998886141,0.91569822,2916.6,2915.2,0.91026969]
[1768998886652,0.001,2916.4,2915.2,0.91026969]
[1768998886839,0.001,2916.4,2915.3,0.94457147]
[1768998887158,0.97386904,2916.4,2915.3,0.94457147]
[1768998887934,0.97386904,2916.4,2915.5,0.91026969]
[1768998888171,0.001,2916.4,2915.5,0.91026969]
[1768998888834,0.17925579,2916.7,2915.4,0.91026969]
[1768998889038,0.0008,2917.2,2915.4,0.91026969]
[1768998889529,0.0008,2917.2,2915.6,0.91026969]
[1768998890138,0.0008,2917.2,2915.8,0.91026969]
[1768998890337,0.0008,2917.2,2916.0,0.91026969]
[1768998891573,0.97366904,2917.2,2916.1,0.567]
[1768998891778,0.97366904,2917.2,2916.1,1.47726969]
[1768998892590,0.97366904,2917.2,2916.1,0.567]
[1768998894254,0.97366904,2917.2,2916.2,0.91026969]
[1768998898389,0.97366904,2917.2,2916.3,0.002]
[1768998898585,0.94620821,2916.9,2916.3,0.002]
[1768998899362,0.94620821,2916.9,2916.0,0.002]
[1768998901796,0.001,2917.0,2916.0,0.002]
[1768998901797,0.001,2917.0,2916.0,1.01520596]
[1768998901998,0.94720821,2917.0,2916.0,0.002]
[1768998904295,0.94720821,2917.0,2915.4,0.03430061]
[1768998904498,0.94620821,2916.8,2915.1,0.97891241]
[1768998904797,6.85659432,2916.9,2914.9,0.569]
[1768998904798,0.94620821,2916.6,2914.9,0.569]
[1768998904999,0.94620821,2916.4,2914.9,0.569]
[1768998905172,0.94620821,2916.4,2914.9,0.002]
[1768998906483,0.94620821,2916.4,2914.9,3.46692537]
[1768998906696,0.94620821,2916.4,2914.9,0.002]
[1768998907014,0.94620821,2916.2,2914.9,0.002]
[1768998908011,0.94620821,2915.8,2914.3,0.567]
[1768998908208,0.94620821,2915.8,2914.3,3.99833564]
[1768998908428,0.94620821,2915.8,2914.4,0.53307376]
[1768998908583,0.94620821,2915.8,2914.7,0.53307376]
[1768998908919,0.94620821,2915.8,2914.3,0.53307376]
[1768998909105,0.94620821,2915.8,2914.5,0.567]
[1768998909478,0.94620821,2915.7,2914.5,0.567]
[1768998910997,0.94620821,2915.7,2914.6,3.99838631]
[1768998911227,0.94620821,2915.7,2914.6,7.42938884]
[1768998911526,0.94620821,2915.7,2914.6,3.96407629]
[1768998911680,0.94620821,2915.7,2914.7,0.002]
[1768998914417,0.94620821,2916.1,2914.7,0.5693826]
[1768998915285,0.94620821,2916.1,2914.9,0.53307376]
[1768998915483,0.94620821,2916.1,2915.0,0.56737907]
[1768998916196,0.001,2916.2,2915.0,0.56737907]
[1768998916401,0.96892313,2916.7,2915.1,0.53207376]
[1768998916719,0.96892313,2916.7,2915.3,0.53207376]
[1768998917017,0.96892313,2916.7,2915.5,0.53207376]
[1768998917328,0.96892313,2916.7,2915.7,3.42970813]
[1768998918530,3.42844439,2917.5,2915.7,3.42970813]
[1768998918531,0.0008,2917.5,2915.7,13.71883252]
[1768998918701,0.0008,2917.5,2916.0,0.53027376]
[1768998919305,0.001,2917.8,2916.4,0.52847376]
[1768998919489,0.96992313,2917.8,2916.4,0.52847376]
[1768998919693,0.96992313,2917.8,2916.5,0.567]
[1768998920040,0.001,2917.8,2916.6,0.52847376]
[1768998920240,0.96892313,2918.5,2916.6,0.52847376]
[1768998920536,0.96892313,2918.5,2916.6,0.52747376]
[1768998921202,0.96892313,2918.5,2916.8,0.52747376]
[1768998921403,3.42563819,2919.2,2916.8,0.52747376]
[1768998921404,0.17911427,2919.2,2916.8,0.52747376]
[1768998921659,0.96892313,2919.1,2917.0,0.52747376]
[1768998922427,0.96892313,2919.5,2917.0,0.52747376]
[1768998922599,0.96892313,2919.5,2917.2,0.52747376]
[1768998923125,0.96892313,2919.5,2917.4,0.52747376]
[1768998923425,0.96892313,2919.5,2917.6,0.52747376]
[1768998923726,3.42473575,2920.0,2917.6,0.52747376]
[1768998923727,0.96892313,2920.0,2917.6,0.52747376]
[1768998924591,0.0008,2920.1,2918.0,0.52747376]
[1768998925332,0.0008,2920.1,2917.5,17.13796055]
[1768998925333,0.96972313,2920.1,2918.2,0.52747376]
[1768998925534,0.96892313,2919.8,2918.2,0.52747376]
[1768998925737,0.0008,2920.1,2918.1,7.4207747]
[1768998925738,0.96972313,2920.1,2918.1,7.94724846]
[1768998926027,0.96892313,2920.0,2918.2,0.567]
[1768998926234,0.96892313,2920.0,2918.3,0.52647376]
[1768998927034,0.0008,2920.1,2918.3,0.52647376]
[1768998927239,0.0008,2920.1,2918.5,0.52647376]
[1768998928144,0.96972313,2920.1,2918.5,0.52647376]
[1768998928345,0.96972313,2920.1,2918.1,0.52647376]
[1768998928502,0.96972313,2920.1,2918.3,3.99363907]
[1768998928702,0.96972313,2920.1,2918.4,0.52647376]
[1768998928933,0.96972313,2920.1,2918.3,3.99363907]
[1768998929234,0.96892313,2919.7,2918.3,0.567]
[1768998929528,0.96892313,2919.5,2918.3,0.567]
[1768998930118,0.96892313,2919.5,2918.3,1e-08]
[1768998930320,0.96892313,2919.5,2917.9,0.567]
[1768998930526,0.96892313,2919.5,2918.3,3.42665155]
[1768998930730,0.96892313,2919.5,2917.9,0.567]
[1768998930905,0.96892313,2919.5,2917.7,3.42733534]
[1768998931248,6.84959658,2919.9,2917.2,0.002]
[1768998931249,0.96892313,2919.2,2917.2,0.002]
[1768998931402,0.96892313,2919.2,2917.4,0.67647376]
[1768998931605,0.96892313,2919.2,2917.5,0.71074968]
[1768998933439,0.96892313,2919.2,2917.6,7.53142302]
[1768998933738,0.96892313,2919.2,2917.7,0.71074733]
[1768998934736,0.96892313,2920.0,2917.7,0.71074733]
[1768998935206,0.96892313,2919.8,2917.8,0.567]
[1768998935531,0.96892313,2919.6,2917.8,7.42141361]
[1768998935729,0.96892313,2919.6,2917.9,0.03427122]
[1768998936440,0.96892313,2919.5,2917.7,3.99429744]
[1768998936672,0.96892313,2919.5,2917.8,3.46145445]
[1768998936840,0.96892313,2919.5,2917.8,6.88869415]
[1768998937130,0.96892313,2919.5,2917.9,0.67647376]
[1768998937337,0.96892313,2919.5,2918.0,0.7107438]
[1768998937504,3.42541773,2920.1,2918.2,0.97996123]
[1768998937705,0.96892313,2919.9,2918.3,1.01422775]
[1768998938334,0.001,2919.3,2918.3,1.01422775]
[1768998939000,0.96992313,2919.3,2918.3,0.03426652]
[1768998939203,0.001,2919.3,2918.4,0.03426183]
[1768998939435,0.001,2919.3,2918.1,4.40684858]
[1768998939635,0.96992313,2919.3,2918.1,1.0142301]
[1768998939835,0.001,2919.3,2918.3,0.97996123]
[1768998940034,0.001,2919.3,2918.4,1.01422658]
[1768998941146,0.001,2919.3,2918.2,6.85352658]
[1768998941343,0.001,2919.3,2918.3,0.03426652]
[1768998941526,0.001,2919.3,2918.3,3.46082218]
[1768998941921,0.001,2919.3,2918.4,0.97996123]
[1768998942239,0.001,2919.3,2918.4,0.03426535]
[1768998942617,0.001,2919.3,2918.2,4.97370578]
[1768998942618,0.96992313,2919.3,2918.2,3.42675471]
[1768998942817,0.96992313,2919.3,2918.3,3.42664874]
[1768998943013,0.96992313,2919.3,2918.4,0.03426535]
[1768998943014,0.001,2919.3,2918.4,0.03426535]
[1768998943439,0.001,2919.3,2918.5,3.42641768]
[1768998943634,0.001,2919.3,2918.5,6.85283536]
[1768998943842,0.001,2919.3,2918.6,1.01422423]
[1768998944647,0.001,2919.3,2918.6,0.034263]
[1768998944847,0.96892313,2920.0,2918.6,1.01422423]
[1768998945018,0.0008,2920.1,2918.6,1.01422423]
[1768998945540,0.0008,2920.1,2918.8,0.96736068]
[1768998945849,0.0008,2920.1,2918.9,1.00162016]
[1768998946016,0.0008,2920.1,2919.1,0.96736068]
[1768998946217,0.0008,2920.1,2919.2,0.96736068]
[1768998947049,1.1283206,2921.1,2919.2,0.96736068]
[1768998947251,0.94933039,2921.1,2919.2,0.96736068]
[1768998947763,0.94933039,2921.1,2919.1,0.03425713]
[1768998947764,0.94933039,2921.5,2919.4,0.96736068]
[1768998948147,0.94933039,2921.5,2919.3,17.12739355]
[1768998948148,0.94933039,2921.5,2919.6,0.96736068]